[Event "Club Ajedrez Silla 60 Years 2022"]
[Site "Silla"]
[Date "2022.05.09"]
[Round "1.1"]
[White "Krasteva, Beloslava"]
[Black "Kotronias, Vasilios"]
[Result "0-1"]
[ECO "E90"]
[WhiteElo "2268"]
[BlackElo "2465"]
[Annotator "TA"]
[PlyCount "54"]
[EventDate "2022.05.09"]
[EventType "tourn"]
[EventCountry "ESP"]
[SourceTitle "playchess.com"]
[Source "ChessBase"]
[SourceQuality "1"]
[TimeControl "5400+30"]

{[%evp 19,54,29,32,34,37,23,54,59,75,70,82,64,55,52,64,56,50,-47,-44,-44,-30,-33,-34,-36,-43,-101,-101,-111,-27,-260,-235,-312,-250,-843,-800,-924,-872]} 1. d4 {[%emt 0:00:04]} Nf6 {[%emt 0:00:16]} 2. c4 {[%emt 0:00:05]} g6 {[%emt 0:00:11]} 3. Nc3 {[%emt 0:00:06]} Bg7 {[%emt 0:00:04]} 4. e4 {[%emt 0:00:06]} d6 {[%emt 0:00:05]} 5. h3 {[%emt 0:00:04]} O-O {[%emt 0:00:12]} 6. Be3 {[%emt 0:00:05]} Na6 {[%emt 0:00:53]} 7. Nf3 {[%emt 0:01:11]} e5 {[%emt 0:00:18]} 8. d5 {[%emt 0:00:09]} Nc5 {[%emt 0:00:13]} 9. Nd2 {[%emt 0:00:41]} a5 {[%emt 0:00:09]} 10. g4 {[%emt 0:00:35]} c6 $1 {[%emt 0:00:23] The main line 10...c6 scores better than 10...Ne8.} 11. Qc2 {[%emt 0:01:07] E90: King's Indian: Classical: Early deviations and 6 h3.} a4 {[%emt 0:04:56]} 12. a3 {[%emt 0:01:31]} Bd7 {[%emt 0:00:38]} 13. O-O-O {[%emt 0:01:21] White is slightly better.} Qa5 {[%emt 0:00:24]} 14. Kb1 {[%emt 0:01:30]} Rfc8 {[%emt 0:02:35]} 15. f3 {[%emt 0:02:34]} Rab8 {[%emt 0:06:09]} 16. Be2 {[%emt 0:04:30]} cxd5 {[%emt 0:03:54]} 17. exd5 {[%emt 0:00:45] [#]} Qd8 $146 {[%emt 0:09:31]} ({Predecessor:} 17... b6 18. Rdg1 e4 19. fxe4 b5 20. e5 dxe5 21. cxb5 Qa8 22. Rf1 Nb3 23. Rxf6 Nxd2+ 24. Qxd2 Bxf6 {½-½ (44) Hamitevici,V (2476)-Fedorov,A (2566) Kishinev 2019}) 18. h4 {[%emt 0:04:43]} (18. Rh2 $14) 18... e4 $1 $15 {[%emt 0:01:46]} 19. Ndxe4 {[%emt 0:04:04]} Ncxe4 {[%emt 0:03:19][%mdl 64] [#] Remove Defender} (19... Nfxe4 {seems wilder.} 20. fxe4 b5 21. cxb5 Nb3) 20. Nxe4 {[%emt 0:01:44]} Nxe4 {[%emt 0:01:22][%mdl 64] Remove Defender} 21. Qxe4 {[%emt 0:01:28]} (21. fxe4 b5 22. Bd4 bxc4 23. Bxg7 Kxg7 $17) 21... b5 {[%emt 0:09:57]} 22. cxb5 {[%emt 0:03:48] [#]} (22. Bd4 $1 $15) 22... f5 $1 $40 {[%emt 0:00:20][%mdl 128] Black wants a kill.} ({Don't take} 22... Bxb5 23. Bxb5 Rxb5 24. Bd4 $14) 23. Qf4 {[%emt 0:16:26] Hoping for Bd4.} Qe8 {[%emt 0:10:15]} (23... Bxb5 $17 24. Bxb5 Rxb5) 24. Rd2 $2 {[%emt 0:14:59] Loses the game.} (24. b6 $11 fxg4 25. fxg4 (25. Ba6 Bf5+ 26. Ka1 Be5 $11)) 24... Be5 $19 {[%emt 0:03:53]} 25. Qxa4 {[%emt 0:03:29]} Bxb5 {[%emt 0:01:25]} 26. Qa7 {[%emt 0:16:27]} (26. Bxb5 Rxb5 27. b4) 26... Bxe2 {[%emt 0:01:33]} ({Worse is} 26... Bxb2 27. Rxb2 Bxe2 28. Bd4 $11) 27. Rxe2 {[%emt 0:00:06]} Qb5 {[%emt 0:00:34][%csl LRb2,LRd5,LRe2] Weighted Error Value: White=0.83/Black=0.08 (flawless)} 0-1

[Event "Club Ajedrez Silla 60 Years 2022"]
[Site "Silla"]
[Date "2022.05.09"]
[Round "1.2"]
[White "Salvador Lopez, Daniel"]
[Black "Granero Roca, Antonio"]
[Result "0-1"]
[ECO "A45"]
[WhiteElo "2134"]
[BlackElo "2340"]
[Annotator "TA"]
[PlyCount "80"]
[EventDate "2022.05.09"]
[EventType "tourn"]
[EventCountry "ESP"]
[SourceTitle "playchess.com"]
[Source "ChessBase"]
[SourceQuality "1"]
[TimeControl "5400+30"]

{[%evp 12,80,50,43,46,30,29,36,33,15,66,53,88,59,58,47,49,53,58,46,43,0,0,0,45,-16,9,0,0,0,7,-5,28,19,49,0,0,0,0,-12,-16,-22,-6,-11,-6,-6,-6,-64,-54,-78,-27,-61,-59,-90,-56,-249,-265,-446,-418,-730,-715,-717,-699,-870,-830,-1854,-1835,-2952,-1564,-1033,-887]} 1. d4 {[%emt 0:00:07]} Nf6 {[%emt 0:00:22]} 2. Bg5 {[%emt 0:00:18]} Ne4 {[%emt 0:01:45]} 3. Bf4 {[%emt 0:00:21]} c5 {[%emt 0:00:59]} 4. d5 {[%emt 0:00:41]} d6 {[%emt 0:00:51]} 5. f3 {[%emt 0:02:31]} Nf6 {[%emt 0:00:32]} 6. e4 {[%emt 0:00:22]} g6 {[%emt 0:01:00]} 7. Nc3 {[%emt 0:01:42]} Bg7 {[%emt 0:02:37] A45: Trompowsky Attack.} 8. Qd2 {[%emt 0:01:01]} a6 {[%emt 0:02:39]} 9. a4 {[%emt 0:07:00]} Qa5 {[%emt 0:02:22] White is slightly better.} 10. Nd1 {[%emt 0:04:34] [#]} Qc7 $146 {[%emt 0:05:36]} (10... Qxd2+ $11 11. Kxd2 Nh5) ({Predecessor:} 10... Qxd2+ 11. Kxd2 b6 12. c4 Nbd7 13. Nh3 O-O 14. Nhf2 Nh5 15. Be3 e6 16. Nc3 Bd4 17. g4 {½-½ (17) Sonnenfeld,D (2064)-Mensch,E (2310) Baden 2017}) 11. Bh6 {[%emt 0:03:11]} O-O {[%emt 0:04:29]} 12. h4 {[%emt 0:08:12][%cal Oh4h5]} e6 $1 {[%emt 0:03:13][%cal Be7e6,Be6d5][%mdl 32]} 13. h5 {[%emt 0:01:34]} exd5 {[%emt 0:01:02]} 14. Bxg7 {[%emt 0:00:26]} Kxg7 {[%emt 0:00:12]} 15. hxg6 {[%emt 0:00:12]} fxg6 {[%emt 0:00:41]} 16. Qh6+ {[%emt 0:00:22]} Kg8 {[%emt 0:01:01]} 17. Ne3 {[%emt 0:01:11]} Qg7 {[%emt 0:09:10]} (17... dxe4 $2 18. Bc4+ d5 19. Nxd5 Qg3+ 20. Kf1 Qf2+ 21. Kxf2 $18) (17... Rf7 $5 {[%cal Rd5d4]}) 18. Nxd5 {[%emt 0:08:23]} ({White should try} 18. Qxg7+ $14 Kxg7 19. exd5 (19. Nxd5 Nxd5 20. exd5 Nd7 $11)) 18... Nxd5 {[%emt 0:01:31]} 19. Qxg7+ {[%emt 0:00:09]} Kxg7 {[%emt 0:00:07]} 20. exd5 {[%emt 0:00:06]} Nd7 {[%emt 0:01:48]} 21. O-O-O {[%emt 0:04:45]} Rf4 {[%emt 0:04:18]} 22. b3 {[%emt 0:04:24]} Nf6 {[%emt 0:03:33][%cal Ob7b5]} 23. Ne2 {[%emt 0:03:38]} (23. Bd3 $14 {might be stronger.}) 23... Rf5 $11 {[%emt 0:00:39]} 24. Nc3 {[%emt 0:01:59]} Bd7 {[%emt 0:01:04]} 25. Re1 {[%emt 0:09:57]} Re8 {[%emt 0:03:04]} (25... Nxd5 $2 26. Nxd5 Re8 27. Rxe8 Bxe8 28. Bc4 $18) 26. Bc4 {[%emt 0:02:08]} Rfe5 {[%emt 0:01:33]} 27. Kd2 {[%emt 0:00:34]} h5 {[%emt 0:01:54][%cal Bh7h5,Bh5h4][%mdl 32]} 28. Rxe5 {[%emt 0:01:54]} (28. Rb1 {feels hotter.} R8e7 29. a5 Be8 30. Rhe1) 28... Rxe5 {[%emt 0:00:09]} 29. Re1 {[%emt 0:02:20]} ({Better is} 29. f4 $11 Re8 30. Bd3) 29... Rxe1 $15 {[%emt 0:00:13]} 30. Kxe1 {[%emt 0:00:05][%mdl 4096] Endgame KBN-KBN} g5 {[%emt 0:00:11]} (30... Kh6 $17) 31. Kd2 {[%emt 0:01:46]} Kg6 {[%emt 0:00:20]} 32. Ke3 {[%emt 0:09:05]} h4 {[%emt 0:02:27]} 33. Ne4 $2 {[%emt 0:01:53] [#] This move loses the game for White.} (33. a5 $15) 33... Nxe4 $19 {[%emt 0:00:44]} 34. Bd3 $2 {[%emt 0:01:10]} (34. fxe4 Kf6 35. Bd3) 34... Kf6 {[%emt 0:01:40]} 35. fxe4 {[%emt 0:01:57] KB-KB} (35. Bxe4 $142 b6 36. Kf2) 35... a5 {[%emt 0:01:22] Black is clearly winning.} 36. Be2 {[%emt 0:02:56]} Ke5 {[%emt 0:00:16]} 37. c4 {[%emt 0:01:23]} Be8 {[%emt 0:00:53]} 38. Bf3 {[%emt 0:04:27]} Bg6 {[%emt 0:00:22]} 39. g4 {[%emt 0:00:10]} hxg3 {[%emt 0:00:42]} 40. Bg2 {[%emt 0:00:12]} Bh5 {[%emt 0:00:37] Weighted Error Value: White=0.67/Black=0.10 (very precise)} 0-1

[Event "Club Ajedrez Silla 60 Years 2022"]
[Site "Silla"]
[Date "2022.05.09"]
[Round "1.3"]
[White "Petrov, Marian"]
[Black "Ilinca Ilinca, Felix Antonio"]
[Result "1-0"]
[ECO "B22"]
[WhiteElo "2456"]
[BlackElo "2165"]
[Annotator "TA"]
[PlyCount "49"]
[EventDate "2022.05.09"]
[EventType "tourn"]
[EventCountry "ESP"]
[SourceTitle "playchess.com"]
[Source "ChessBase"]
[SourceQuality "1"]
[TimeControl "5400+30"]

{[%evp 9,49,8,41,47,70,76,102,105,108,33,109,93,201,208,197,198,357,298,535,535,526,509,1114,1074,1146,1127,29990,29991,29991,29992,29992,29993,29993,29994,29994,29995,29995,29996,29996,29995,29997,29998]} 1. e4 {[%emt 0:00:05][%cal Be2e4,Be4e5][%mdl 32]} c5 {[%emt 0:00:20]} 2. Nf3 {[%emt 0:00:12]} e6 {[%emt 0:00:22]} 3. c3 {[%emt 0:02:12][%cal Bc2c3,Bc3c4][%mdl 32]} Nf6 {[%emt 0:01:03]} 4. e5 {[%emt 0:00:26]} Nd5 {[%emt 0:00:43]} 5. d4 {[%emt 0:00:38]} d6 {[%emt 0:02:50]} 6. c4 {[%emt 0:03:35] B22: Sicilian: 2 c3.} Nc7 {[%emt 0:08:26]} 7. dxc5 {[%emt 0:03:53] White is more active.} dxc5 {[%emt 0:00:31] [#]} 8. Bd3 $146 {[%emt 0:03:38] White is better.} ({Predecessor:} 8. Qxd8+ Kxd8 9. Nc3 b6 10. Bg5+ Be7 11. O-O-O+ Ke8 12. Ne4 Bxg5+ 13. Nfxg5 Ke7 14. Nd6 {1-0 (49) Myall,I (2054)-Ewart,B (1889) Aberystwyth 2014}) 8... Nc6 {[%emt 0:03:55] [#]} 9. Qe2 {[%emt 0:01:48]} (9. O-O $1 $16) 9... Be7 {[%emt 0:03:01]} ({Black should play} 9... f5 $1 $14) 10. Nc3 {[%emt 0:03:41]} O-O {[%emt 0:23:59]} (10... Nd4 $16 {is a better defense.} 11. Nxd4 cxd4) 11. Qe4 $18 {[%emt 0:03:47][%csl Gd3][%cal Re4h7]} g6 {[%emt 0:00:49]} 12. Bh6 {[%emt 0:00:20]} Re8 $2 {[%emt 0:01:41]} (12... f5 {was necessary.} 13. exf6 Rxf6) 13. O-O-O {[%emt 0:00:35]} Bd7 $2 {[%emt 0:02:32]} (13... f5 14. Qf4 (14. exf6 Bxf6 15. Qe3 Qe7 $16) 14... Nd4) 14. h4 {[%emt 0:02:26]} Nb4 {[%emt 0:03:18]} 15. Bb1 {[%emt 0:00:54] [#] Threatens to win with h5.} Qc8 {[%emt 0:00:50]} (15... b5 $142 16. h5 bxc4 17. hxg6 hxg6 18. Qxc4 Ncd5 19. Nxd5 exd5) 16. h5 {[%emt 0:00:25][%cal Rh5g6]} Rd8 {[%emt 0:07:12]} 17. hxg6 {[%emt 0:01:46]} hxg6 {[%emt 0:05:10]} 18. Bg5 {[%emt 0:00:53] White mates.} Bc6 {[%emt 0:01:38]} 19. Qh4 {[%emt 0:02:03][%csl Gh1][%cal Rh4h8]} Bxg5+ {[%emt 0:01:15]} 20. Nxg5 {[%emt 0:00:06][%csl Gh1][%cal Rh4h8]} Rxd1+ {[%emt 0:01:43]} 21. Rxd1 {[%emt 0:01:04]} Qe8 {[%emt 0:01:14]} 22. Qh7+ {[%emt 0:00:20]} Kf8 {[%emt 0:00:13]} 23. Qh8+ {[%emt 0:00:07]} Ke7 {[%emt 0:00:15]} 24. Qf6+ {[%emt 0:00:06]} Kf8 {[%emt 0:00:18]} 25. Rh1 {[%emt 0:00:07] Weighted Error Value: White=0.09 (flawless) /Black=0.73} 1-0

[Event "Club Ajedrez Silla 60 Years 2022"]
[Site "Silla"]
[Date "2022.05.09"]
[Round "2.1"]
[White "Kotronias, Vasilios"]
[Black "Ilinca Ilinca, Felix Antonio"]
[Result "1-0"]
[ECO "B33"]
[WhiteElo "2465"]
[BlackElo "2165"]
[Annotator "TA"]
[PlyCount "133"]
[EventDate "2022.05.09"]
[EventType "tourn"]
[EventCountry "ESP"]
[SourceTitle "playchess.com"]
[Source "ChessBase"]
[SourceQuality "1"]
[TimeControl "5400+30"]

{[%evp 25,133,8,7,0,6,4,22,22,20,13,13,8,16,17,12,6,12,0,14,2,27,26,36,35,42,46,47,18,72,72,112,103,97,100,132,152,140,103,109,107,154,130,126,129,172,160,149,161,154,155,167,124,215,211,222,235,308,321,393,359,393,393,393,393,389,375,397,387,339,285,255,247,335,328,527,527,645,609,905,734,990,922,1380,1348,1169,1168,1325,1133,4150,3652,2387,2315,2864,1683,29979,29978,29978,29979,29979,29979,29983,29984,29984,29985,29985,29986,29986,29987,29987,29987]} 1. e4 {[%emt 0:00:42]} c5 {[%emt 0:00:25]} 2. Nf3 {[%emt 0:00:08][%cal Bg1f3,Bf3d4,Bd4b5,Bb5a3,Ba3c2][%mdl 32]} e6 {[%emt 0:00:41]} 3. d4 {[%emt 0:00:05]} cxd4 {[%emt 0:00:27]} 4. Nxd4 {[%emt 0:00:06]} Nf6 {[%emt 0:00:32]} 5. Nc3 {[%emt 0:00:07]} Nc6 {[%emt 0:00:38]} 6. Ndb5 {[%emt 0:00:16]} d6 {[%emt 0:00:56]} 7. Bf4 {[%emt 0:00:07]} e5 {[%emt 0:00:35]} 8. Bg5 {[%emt 0:00:04]} a6 {[%emt 0:00:37]} 9. Na3 {[%emt 0:00:08]} b5 {[%emt 0:01:35]} 10. Nd5 {[%emt 0:00:17]} Be7 {[%emt 0:00:26]} 11. Bxf6 {[%emt 0:00:12]} Bxf6 {[%emt 0:00:09]} 12. c4 {[%emt 0:00:06]} b4 {[%emt 0:01:52] 12...0-0 is more advanced technology.} 13. Nc2 {[%emt 0:00:04]} a5 {[%emt 0:02:28]} 14. g3 {[%emt 0:00:06] B33: Sicilian: Pelikan and Sveshnikov Variations.} O-O {[%emt 0:01:34]} 15. Bg2 {[%emt 0:00:04]} Be6 {[%emt 0:08:02]} 16. O-O {[%emt 0:01:00] The position is equal.} Rc8 {[%emt 0:02:19]} 17. Nxf6+ {[%emt 0:06:34]} Qxf6 {[%emt 0:00:37]} 18. b3 {[%emt 0:00:04]} Qe7 {[%emt 0:06:39]} 19. Qd2 {[%emt 0:02:15] [#]} Rfd8 $146 {[%emt 0:05:46]} ({Predecessor:} 19... Kh8 20. Rad1 Rfd8 21. h3 Qb7 22. Kh2 a4 23. f4 f6 24. h4 Ra8 25. Ra1 Qb6 26. Bf3 Ra7 {1-0 (37) Borkowski,F (2314)-Gryniakow,J (2220) Mrzezyno 2010}) 20. h4 {[%emt 0:01:00]} h6 {[%emt 0:04:53]} 21. Kh2 {[%emt 0:00:07]} Rb8 {[%emt 0:04:22]} 22. Rae1 {[%emt 0:05:40][%cal Ba1e1,Be1e3,Be3d3][%mdl 32]} Rbc8 {[%emt 0:08:48]} 23. Re3 {[%emt 0:00:13]} Rb8 {[%emt 0:10:40]} 24. Rd3 {[%emt 0:03:34]} Rd7 {[%emt 0:01:11]} 25. Rd1 {[%emt 0:01:36][%cal Rd3d6]} Rbd8 {[%emt 0:01:20]} 26. Bh3 {[%emt 0:03:18]} Kh8 {[%emt 0:03:50]} (26... Nb8 $11) 27. Qe3 {[%emt 0:06:17]} Bxh3 {[%emt 0:03:13]} 28. Kxh3 {[%emt 0:00:05]} Qe6+ {[%emt 0:01:15]} 29. Kg2 {[%emt 0:00:04]} Ne7 {[%emt 0:07:24]} 30. Qf3 {[%emt 0:01:17]} f5 {[%emt 0:00:48]} 31. exf5 {[%emt 0:00:55]} Nxf5 {[%emt 0:00:08]} 32. Qe4 {[%emt 0:00:22]} Qg6 {[%emt 0:01:22]} ({Black should try} 32... Rf7) 33. Ne3 {[%emt 0:04:05]} Nxe3+ {[%emt 0:01:18]} 34. Qxe3 {[%emt 0:04:15]} Qf5 {[%emt 0:01:17]} 35. R1d2 {[%emt 0:04:04]} a4 {[%emt 0:03:36]} 36. Rd5 {[%emt 0:00:38]} axb3 {[%emt 0:00:44]} 37. axb3 {[%emt 0:00:03]} Qg6 {[%emt 0:00:54]} 38. Qd3 {[%emt 0:02:04]} Qe6 {[%emt 0:00:44]} (38... e4 $16 39. Qe2 Re7) 39. Qe4 {[%emt 0:02:26]} Qf7 {[%emt 0:01:59]} 40. Rb5 {[%emt 0:02:56]} Qe6 {[%emt 0:00:26]} 41. Rxb4 {[%emt 0:01:03]} d5 {[%emt 0:00:53]} 42. cxd5 {[%emt 0:00:35]} Rxd5 {[%emt 0:00:11]} 43. Rxd5 {[%emt 0:03:16]} Qxd5 {[%emt 0:00:10]} 44. Qxd5 {[%emt 0:00:12]} Rxd5 $18 {[%emt 0:00:08][%mdl 4096] Endgame KR-KR} 45. Kf3 {[%emt 0:00:06]} Kg8 {[%emt 0:00:52]} 46. Ke4 {[%emt 0:05:35]} Rd2 {[%emt 0:00:54]} 47. f3 {[%emt 0:00:20]} Re2+ {[%emt 0:00:29]} 48. Kd3 {[%emt 0:05:48]} Rf2 {[%emt 0:02:19]} 49. Ke3 {[%emt 0:00:08]} Rb2 {[%emt 0:00:38] [#]} (49... Rg2 {keeps fighting.} 50. g4 g6) 50. h5 {[%emt 0:00:06]} Kf7 {[%emt 0:00:47]} 51. Rb6 {[%emt 0:02:21]} Rg2 {[%emt 0:01:59]} 52. g4 {[%emt 0:00:39]} Rb2 {[%emt 0:00:38]} 53. b4 {[%emt 0:04:26]} Rb1 {[%emt 0:01:04]} 54. Ke4 {[%emt 0:00:07]} Re1+ {[%emt 0:00:29]} 55. Kf5 {[%emt 0:00:41]} Re3 {[%emt 0:00:32]} 56. Rb7+ {[%emt 0:00:28]} Kf8 {[%emt 0:00:17]} 57. b5 {[%emt 0:03:06]} Rxf3+ {[%emt 0:00:45]} 58. Kxe5 {[%emt 0:00:22]} Rg3 {[%emt 0:00:48]} 59. b6 {[%emt 0:04:00] [#] Ra7 would kill now.} Rxg4 {[%emt 0:01:04]} 60. Rc7 {[%emt 0:01:03] White mates.} Rb4 {[%emt 0:02:17]} 61. b7 {[%emt 0:00:07]} Rb5+ {[%emt 0:00:14]} 62. Kd4 {[%emt 0:00:18]} Rb4+ {[%emt 0:00:10]} 63. Kc3 {[%emt 0:00:19]} Rb1 {[%emt 0:00:24]} 64. Rc8+ {[%emt 0:00:04]} Ke7 {[%emt 0:00:05]} 65. b8=Q {[%emt 0:00:06]} Rxb8 {[%emt 0:00:11]} 66. Rxb8 {[%emt 0:00:05]} Kf6 {[%emt 0:00:05]} 67. Rb5 {[%emt 0:00:26] Weighted Error Value: White=0.07 (flawless) /Black=0.50} 1-0

[Event "Club Ajedrez Silla 60 Years 2022"]
[Site "Silla"]
[Date "2022.05.09"]
[Round "2.2"]
[White "Granero Roca, Antonio"]
[Black "Petrov, Marian"]
[Result "1/2-1/2"]
[ECO "D79"]
[WhiteElo "2340"]
[BlackElo "2456"]
[Annotator "TA"]
[PlyCount "40"]
[EventDate "2022.05.09"]
[EventType "tourn"]
[EventCountry "ESP"]
[SourceTitle "playchess.com"]
[Source "ChessBase"]
[SourceQuality "1"]
[TimeControl "5400+30"]

{[%evp 21,40,0,26,26,39,18,47,9,35,27,45,31,40,0,6,0,38,0,7,0,86]} 1. Nf3 {[%emt 0:00:04]} Nf6 {[%emt 0:00:08]} 2. g3 {[%emt 0:00:25]} g6 {[%emt 0:00:06]} 3. Bg2 {[%emt 0:00:08]} Bg7 {[%emt 0:00:05]} 4. c4 {[%emt 0:00:16]} c6 {[%emt 0:00:08]} 5. d4 {[%emt 0:00:22]} d5 {[%emt 0:00:06]} 6. cxd5 {[%emt 0:00:35]} cxd5 {[%emt 0:00:06]} 7. Ne5 {[%emt 0:00:41]} O-O {[%emt 0:00:08]} 8. Nc3 {[%emt 0:01:03]} Nc6 {[%emt 0:00:08]} 9. Nxc6 {[%emt 0:01:07]} bxc6 {[%emt 0:00:06]} 10. O-O {[%emt 0:01:05]} Nd7 {[%emt 0:01:58][%cal Bf6d7,Bd7b6,Bb6c4][%mdl 32]} 11. e4 {[%emt 0:01:48]} e6 {[%emt 0:00:26]} 12. Be3 {[%emt 0:01:20] D79: Fianchetto Grünfeld: Symmetrical Variation (6 0-0 c6 7 cxd5 cxd5).} Rb8 {[%emt 0:01:02] [#]} 13. Qc2 $146 {[%emt 0:01:58]} ({Predecessor:} 13. Qd2 Qb6 14. b3 Qb4 15. Rac1 c5 16. Rfd1 cxd4 17. Bxd4 e5 18. Bxa7 Ra8 19. Nxd5 Qxd2 20. Rxd2 Rxa7 {1-0 (36) Espinosa,G (1808)-Campos,A (2043) Rio de Janeiro 2021}) 13... Nb6 {[%emt 0:00:34]} 14. Rad1 {[%emt 0:02:48] White is slightly better.} Ba6 {[%emt 0:00:08]} 15. Rfe1 {[%emt 0:00:09]} Nc4 {[%emt 0:00:28]} 16. Bc1 {[%emt 0:00:39]} Nb6 {[%emt 0:00:07]} 17. Be3 {[%emt 0:00:44]} Nc4 {[%emt 0:00:06]} 18. Bc1 {[%emt 0:00:19]} Nb6 $1 {[%emt 0:00:07]} 19. Be3 {[%emt 0:00:07]} Nc4 {[%emt 0:00:12]} 20. Bc1 {[%emt 1:24:52]} Ra8 {[%emt 1:34:21] Weighted Error Value: White=0.18 (very precise) /Black=0.12 (very precise)} (20... Nb6 $11) 1/2-1/2

[Event "Club Ajedrez Silla 60 Years 2022"]
[Site "Silla"]
[Date "2022.05.09"]
[Round "2.3"]
[White "Krasteva, Beloslava"]
[Black "Salvador Lopez, Daniel"]
[Result "1-0"]
[ECO "D45"]
[WhiteElo "2268"]
[BlackElo "2134"]
[Annotator "TA"]
[PlyCount "63"]
[EventDate "2022.05.09"]
[EventType "tourn"]
[EventCountry "ESP"]
[SourceTitle "playchess.com"]
[Source "ChessBase"]
[SourceQuality "1"]
[TimeControl "5400+30"]

{[%evp 14,63,8,8,14,13,6,6,34,38,44,-53,-52,-58,-65,-50,-33,-25,-14,-79,42,38,18,-77,-76,-250,39,47,58,48,56,0,264,239,253,257,250,226,357,383,386,386,440,437,472,488,525,511,653,633,812,512]} 1. d4 {[%emt 0:03:02]} d5 {[%emt 0:00:15]} 2. c4 {[%emt 0:00:07]} c6 {[%emt 0:00:10]} 3. Nc3 {[%emt 0:00:04]} Nf6 {[%emt 0:00:06]} 4. e3 {[%emt 0:00:04]} e6 {[%emt 0:00:28]} 5. Nf3 {[%emt 0:00:10]} Nbd7 {[%emt 0:00:54]} 6. Be2 {[%emt 0:00:21]} Be7 {[%emt 0:00:09]} 7. O-O {[%emt 0:00:26]} O-O {[%emt 0:00:10]} 8. b3 {[%emt 0:00:13]} b6 {[%emt 0:00:17] D45: Semi-Slav: 5 e3.} 9. Bb2 {[%emt 0:00:20]} Bb7 {[%emt 0:00:13]} 10. a4 {[%emt 0:01:15] [#]} Rc8 $146 {[%emt 0:02:05] The position is equal.} ({Predecessor:} 10... Re8 11. Bd3 dxc4 12. bxc4 c5 13. Qe2 cxd4 14. exd4 Nf8 15. Rfd1 Ng6 16. g3 Rc8 {1-0 (50) Nestorovic,N (2469)-Sanchez,R (1970) Chess.com INT 2021}) 11. a5 {[%emt 0:01:59]} bxa5 {[%emt 0:01:20]} 12. Qc2 {[%emt 0:03:52]} ({White should play} 12. c5 $14) 12... c5 $15 {[%emt 0:03:38]} 13. Ne5 {[%emt 0:11:37]} cxd4 {[%emt 0:03:30]} 14. exd4 {[%emt 0:00:09]} Nxe5 {[%emt 0:00:54]} 15. dxe5 {[%emt 0:00:08]} Nd7 {[%emt 0:00:45]} 16. Rfd1 {[%emt 0:14:29]} (16. Nb5 $1 $11) 16... Qc7 {[%emt 0:05:30]} (16... Bc5 $17 {White must now prevent ...Qh4.} 17. Na4 Bb4) 17. Nb5 $14 {[%emt 0:02:44]} Qb6 {[%emt 0:01:55][%cal Ob6b5] And now ...Qxb5! would win.} 18. Qc3 {[%emt 0:11:12]} (18. Nd6 $11) 18... Nxe5 $17 {[%emt 0:09:50][%cal Od5c4]} (18... Bh4 19. Qe3 $11) 19. c5 $2 {[%emt 0:18:54] [#]} (19. Rxa5 $2 Bf6 20. Qe1 Nxc4 $1 {[%mdl 512]} 21. bxc4 Bxb2 $19) (19. Qxa5 $17 Qxa5 20. Rxa5) 19... Qd8 $2 {[%emt 0:18:20]} 20. Nxa7 $14 {[%emt 0:02:32]} (20. Qxe5 Bf6 21. Qe3 Bxb2 $15) 20... Ra8 {[%emt 0:02:27]} (20... d4 $2 21. Rxd4 (21. Nxc8 dxc3 22. Rxd8 Bxd8 $11) 21... Qc7 22. Nxc8 Qxc8 23. Rda4 $18 (23. Qxa5 Qc6 $14)) 21. Rxa5 {[%emt 0:03:24]} ({Inferior is} 21. Qxe5 Bf6 22. Qf4 (22. Nc6 $2 Bxc6 23. Qe3 Bxb2 $19) 22... Bxb2 $17) 21... Bf6 $1 {[%emt 0:02:26][%cal Oe5c4]} 22. Qd2 {[%emt 0:02:53]} (22. Qb4 $14) 22... Nc6 $2 {[%emt 0:17:29][%mdl 8192]} (22... Qb8 $1 $11 {and Black has nothing to worry.} 23. Rda1 d4) 23. Nxc6 $18 {[%emt 0:00:31]} Bxc6 {[%emt 0:00:10]} 24. Rxa8 {[%emt 0:01:07]} Bxa8 {[%emt 0:00:30]} 25. b4 {[%emt 0:01:28][%cal Bb3b4,Bb4b5,Bb5b6][%mdl 32]} e5 {[%emt 0:02:10]} (25... Bxb2 $142 26. Qxb2 Qc7) 26. b5 {[%emt 0:01:02]} d4 {[%emt 0:00:58]} 27. c6 {[%emt 0:00:58]} Qb6 {[%emt 0:01:01]} 28. Ra1 {[%emt 0:03:25][%cal Bd1a1,Ba1a6,Ba6a8][%mdl 32] White is clearly winning.} Be7 {[%emt 0:09:44]} 29. Ra6 {[%emt 0:02:11]} Qb8 {[%emt 0:01:00]} 30. Qc2 {[%emt 0:02:47]} h6 {[%emt 0:00:53]} 31. b6 {[%emt 0:01:15]} Rc8 {[%emt 0:01:47] [#]} 32. Rxa8 $1 {[%emt 0:03:53][%mdl 512] Weighted Error Value: White=0.28 (precise) /Black=0.53} 1-0